fUSD/lending_fUSD_20250320
["ID","MTS","AMOUNT","RATE_DAILY","PERIOD"]
[356442033,1742460632940,-150.0,0.00035783,2]
[356442035,1742460632949,-345.79,0.00035783,2]
[356442037,1742460632959,-150.0,0.00035783,2]
[356442039,1742460632969,-150.0,0.00035783,2]
[356442041,1742460632978,-150.0,0.00035783,2]
[356442043,1742460632988,-441.98,0.00035783,2]
[356442045,1742460632998,-441.98,0.00035783,2]
[356442046,1742460633007,-150.0,0.00035783,2]
[356442048,1742460633017,-150.0,0.00035783,2]
[356442049,1742460633028,-150.0,0.00035783,2]
[356442050,1742460633037,-345.79,0.00035783,2]
[356442051,1742460633049,-441.98,0.00035783,2]
[356442052,1742460633060,-150.0,0.00035783,2]
[356442053,1742460633071,-150.0,0.00035783,2]
[356442054,1742460633081,-300.0,0.00035783,2]
[356442055,1742460633091,-345.79,0.00035783,2]
[356442056,1742460633101,-150.0,0.00035783,2]
[356442057,1742460633111,-150.0,0.00035783,2]
[356442058,1742460633122,-300.0,0.00035783,2]
[356442059,1742460633133,-300.0,0.00036057,2]
[356442060,1742460633145,-300.0,0.00036057,2]
[356442061,1742460633156,-207.0,0.0003611,2]
[356442062,1742460633165,-153.0,0.00036125,2]
[356442063,1742460633175,-1000.0,0.00036449,2]
[356442064,1742460633187,-2541.8443,0.00036505,2]
[356442065,1742460633198,-167.20178598,0.00036505,2]
[356442066,1742460633208,-1475.681,0.00036604,45]
[356442067,1742460633217,-157.552,0.00036604,45]
[356442068,1742460633229,-345.79,0.00036605,2]
[356442069,1742460633240,-345.79,0.00036605,2]
[356442070,1742460633250,-506.95,0.00036605,2]
[356442071,1742460633260,-150.0,0.00036605,2]
[356442072,1742460633270,-442.66,0.00036605,2]
[356442073,1742460633279,-150.0,0.00036605,2]
[356442074,1742460633289,-150.0,0.00036605,2]
[356442075,1742460633300,-442.66,0.00036605,2]
[356442076,1742460633310,-150.0,0.00036605,2]
[356442077,1742460633320,-300.0,0.00036605,2]
[356442078,1742460633330,-441.4,0.00036605,2]
[356442079,1742460633339,-228.51,0.00036605,2]
[356442080,1742460633349,-778.64,0.00036605,2]
[356442081,1742460633359,-877.48,0.00036605,2]
[356442082,1742460633368,-780.28,0.00036605,2]
[356442083,1742460633379,-150.0,0.00036605,2]
[356442084,1742460633388,-345.79,0.00036605,2]
[356442085,1742460633398,-780.28,0.00036605,2]
[356442086,1742460633407,-441.98,0.00036605,2]
[356442087,1742460633416,-345.79,0.00036605,2]
[356442088,1742460633426,-150.0,0.00036605,2]
[356442089,1742460633436,-442.66,0.00036605,2]
[356442090,1742460633446,-150.0,0.00036605,2]
[356442091,1742460633455,-780.28,0.00036605,2]
[356442092,1742460633464,-441.98,0.00036605,2]
[356442093,1742460633474,-150.0,0.00036605,2]
[356442094,1742460633483,-345.79,0.00036605,2]
[356442095,1742460633492,-150.0,0.00036605,2]
[356442096,1742460633502,-442.66,0.00036605,2]
[356442097,1742460633511,-150.0,0.00036605,2]
[356442098,1742460633520,-150.0,0.00036605,2]
[356442099,1742460633530,-150.0,0.00036605,2]
[356442100,1742460633540,-150.0,0.00036605,2]
[356442101,1742460633551,-150.0,0.00036605,2]
[356442102,1742460633562,-150.0,0.00036605,2]
[356442103,1742460633572,-442.66,0.00036605,2]
[356442104,1742460633582,-150.0,0.00036605,2]
[356442105,1742460633592,-150.0,0.00036605,2]
[356442106,1742460633601,-150.0,0.00036605,2]
[356442107,1742460633610,-778.64,0.00036605,2]
[356442108,1742460633620,-345.07,0.00036605,2]
[356442109,1742460633630,-441.17,0.00036605,2]
[356442110,1742460633640,-441.82,0.00036605,2]
[356442111,1742460633649,-150.0,0.00036605,2]
[356442112,1742460633658,-441.71,0.00036605,2]
[356442113,1742460633667,-779.87,0.00036605,2]
[356442114,1742460633677,-293.79,0.00036605,2]
[356442115,1742460633686,-345.61,0.00036605,2]
[356442116,1742460633696,-150.0,0.00036605,2]
[356442117,1742460633706,-150.0,0.00036605,2]
[356442118,1742460633716,-150.76,0.00036605,2]
[356442119,1742460633725,-150.0,0.00036605,2]
[356442120,1742460633735,-150.0,0.00036605,2]
[356442121,1742460633745,-500.0,0.00036789,2]
[356442122,1742460633754,-10556.56,0.00036827,2]
[356442123,1742460633764,-1000.0,0.00036966,2]
[356442124,1742460633775,-2161.0,0.00037,117]
[356442125,1742460633786,-154.59095384,0.00037008,5]
[356442126,1742460633796,-2000.0,0.00037051,120]
[356442127,1742460633806,-207.0,0.0003724,2]
[356442128,1742460633817,-214.0,0.0003724,2]
[356442129,1742460633826,-167.20178592,0.00037738,2]
[356442130,1742460633836,-205.27581378,0.00037775,8]
[356442131,1742460633846,-4000.0,0.00038356,30]
[356442132,1742460633856,-207.0,0.0003836,2]
[356442133,1742460633866,-214.0,0.0003836,2]
[356442134,1742460633876,-167.20178592,0.0003897,2]
[356442135,1742460633887,-207.0,0.0003949,2]
[356442136,1742460633896,-233.0,0.0003949,2]
[356442137,1742460633906,-214.0,0.0003949,2]
[356442138,1742460633916,-167.20178592,0.00040203,15]
[356442139,1742460633927,-207.0,0.0004062,2]
[356442140,1742460633937,-233.0,0.0004062,2]
[356442141,1742460633947,-214.0,0.0004062,2]
[356442142,1742460633958,-200.0,0.00040678,120]
[356442143,1742460633968,-166.0,0.00041,14]
[356442144,1742460633979,-167.20178592,0.00041435,15]
[356442145,1742460633990,-1000.0,0.00041586,2]
[356442146,1742460634000,-207.0,0.0004175,2]
[356442147,1742460634010,-233.0,0.0004175,2]
[356442148,1742460634020,-214.0,0.0004175,2]
[356442149,1742460634031,-190.04,0.000418,7]
[356442150,1742460634040,-500.0,0.00042384,60]
[356442151,1742460634052,-574.70363844,0.00042386,60]
[356442152,1742460634062,-167.20178592,0.00042668,15]
[356442153,1742460634073,-519.1249585,0.00042679,4]
[356442154,1742460634083,-208.0,0.0004287,30]
[356442155,1742460634093,-233.0,0.0004287,2]
[356442156,1742460634103,-207.0,0.0004287,2]
[356442157,1742460634113,-214.0,0.0004287,2]
[356442158,1742460634123,-209.0,0.0004287,30]
[356442159,1742460634134,-382.26,0.00043,7]
[356442160,1742460634146,-167.0,0.00043151,90]
[356442161,1742460634157,-500.0,0.0004348,60]
[356442162,1742460634167,-2018.53,0.000437,2]
[356442163,1742460634177,-1146.41251878,0.000437,17]
[356442164,1742460634188,-164.60406156,0.0004376,30]
[356442165,1742460634198,-152.09,0.00043793,2]
[356442166,1742460634208,-7636.3581,0.000438,2]
[356442167,1742460634217,-2169.0743,0.000438,2]
[356442168,1742460634228,-561.1098,0.000438,2]
[356442169,1742460634239,-3693.1552,0.00043873,2]
[356442170,1742460634249,-1147.6589,0.00043899,2]
[356442171,1742460634259,-677.7262,0.00043899,2]
[356442172,1742460634269,-1147.6589,0.00043899,2]
[356442173,1742460634278,-1733.2756,0.000439,2]
[356442174,1742460634288,-1000.0,0.000439,2]
[356442175,1742460634299,-854.2746,0.000439,2]
[356442176,1742460634310,-701.7514,0.000439,2]
[356442177,1742460634320,-497.7794,0.000439,2]
[356442178,1742460634330,-3073.2855,0.000439,2]
[356442179,1742460634339,-272.3735,0.000439,2]
[356442180,1742460634350,-1230.7341,0.000439,2]
[356442181,1742460634360,-35002.1549,0.000439,2]
[356442182,1742460634371,-167.20178592,0.000439,15]
[356442183,1742460634381,-936.85028766,0.000439,16]
[356442184,1742460634391,-286.13573888,0.000439,13]
[356442185,1742460634401,-4609.05722969,0.000439,15]
[356442186,1742460634411,-2399.517671,0.000439,2]
[356442187,1742460634420,-1520.0,0.00043973,120]
[356442188,1742460634429,-13663.0,0.00043973,120]
[356442189,1742460634438,-18304.0,0.00043973,120]
[356442190,1742460634448,-50084.14,0.00043999,2]
[356442191,1742460634458,-911.0,0.00044,7]
[356442192,1742460634467,-432117.81760829,0.00044,2]
[356442202,1742460638030,-1115.0,0.00030704,2]
[356442203,1742460638040,-403.76,0.00033704,2]
[356442204,1742460638051,-500.0,0.00043897,120]
[356442205,1742460638062,-323.27561663,0.00043897,120]
[356442206,1742460638071,-229.53361363,0.00043897,120]
[356442207,1742460638081,-500.0,0.00043897,120]
[356442208,1742460638091,-500.0,0.00043897,120]
[356442209,1742460638100,-500.0,0.00043897,120]
[356442210,1742460638111,-302.86477733,0.00043897,120]
[356442211,1742460638121,-500.0,0.00043897,120]
[356442212,1742460638130,-500.0,0.00043897,120]
[356442213,1742460638140,-500.0,0.00043897,120]
[356442214,1742460638153,-500.0,0.00043897,120]
[356442215,1742460638163,-500.0,0.00043897,120]
[356442216,1742460638174,-263.31984917,0.00043897,120]
[356442217,1742460638183,-500.0,0.00043897,120]
[356442218,1742460638195,-500.0,0.00043897,120]
[356442219,1742460638204,-500.0,0.00043897,120]
[356442220,1742460638214,-500.0,0.00043897,120]
[356442221,1742460638225,-500.0,0.00043897,120]
[356442222,1742460638235,-17678.29325548,0.00044,2]
[356442223,1742460638250,-3592.67001464,0.00044,2]
[356442224,1742460638261,-861.46,0.00044,2]
[356442225,1742460638272,-6577.40084205,0.00044,2]
[356442234,1742460640341,-22142.20302755,0.00044,2]
[356442235,1742460640449,-998.97311551,0.00044,2]
[356442236,1742460640461,-403.68499998,0.00044,2]
[356442237,1742460640473,-1480.24499997,0.00044,2]
[356442238,1742460640608,-0.006861,0.00044,2]
[356442239,1742460640619,-501.54102388,0.00044,2]
[356442240,1742460640631,-10822.67097391,0.00044,2]
[356442245,1742460643238,-686.40169331,0.00044,2]
[356442246,1742460643292,-6730.79817747,0.00044,2]
[356442247,1742460643347,-480.31328877,0.00044,2]
[356442248,1742460643401,-250.10485488,0.00044,2]
[356442279,1742460643855,-5428122.00900239,0.00044,2]
[356442281,1742460643865,-1634.99280213,0.00044,30]
[356442283,1742460643875,-850.0,0.00044,120]
[356442285,1742460643884,-505.34073309,0.00044,60]
[356442287,1742460643895,-170.43216463,0.00044,30]
[356442289,1742460643905,-527.01359048,0.00044,30]
[356442291,1742460643915,-198.0,0.00044,120]
[356442293,1742460643924,-661.90078975,0.00044,30]
[356442295,1742460643934,-156353.93107175,0.00044,30]
[356442297,1742460643944,-151.0,0.00044,2]
[356442299,1742460643954,-253.62,0.00044,14]
[356442301,1742460643964,-208.0,0.00044,30]
[356442303,1742460643974,-233.0,0.00044,30]
[356442305,1742460643983,-207.0,0.00044,30]
[356442307,1742460643992,-215.0,0.00044,30]
[356442309,1742460644003,-214.0,0.00044,30]
[356442310,1742460644012,-209.0,0.00044,30]
[356442312,1742460644022,-200.0,0.00044,7]
[356442314,1742460644031,-1000.0,0.00044,2]
[356442316,1742460644041,-1000.0,0.00044,2]
[356442318,1742460644051,-1000.0,0.00044,2]
[356442320,1742460644060,-1000.0,0.00044,2]
[356442323,1742460644072,-1000.0,0.00044,2]
[356442324,1742460644081,-1000.0,0.00044,2]
[356442326,1742460644090,-1000.0,0.00044,2]
[356442328,1742460644100,-1000.0,0.00044,2]
[356442330,1742460644110,-1000.0,0.00044,2]
[356442332,1742460644119,-1000.0,0.00044,2]
[356442334,1742460644128,-1000.0,0.00044,2]
[356442336,1742460644138,-1000.0,0.00044,2]
[356442338,1742460644148,-1000.0,0.00044,2]
[356442340,1742460644160,-1000.0,0.00044,2]
[356442342,1742460644170,-1000.0,0.00044,2]
[356442344,1742460644179,-1000.0,0.00044,2]
[356442361,1742460644328,-1000.0,0.00044,2]
[356442363,1742460644339,-1000.0,0.00044,2]
[356442365,1742460644349,-1000.0,0.00044,2]
[356442367,1742460644359,-1000.0,0.00044,2]
[356442369,1742460644369,-450.97078566,0.00044,2]
[356442371,1742460644378,-266.21309,0.00044,75]
[356442373,1742460644387,-517.21411,0.0004401,2]
[356442375,1742460644397,-2871.5098017,0.00044049,2]
[356442377,1742460644407,-1185.4166763,0.00044079,2]
[356442378,1742460644417,-316.76561418,0.00044109,120]
[356442380,1742460644426,-232.19,0.00044239,2]
[356442382,1742460644436,-286.13573884,0.00044267,15]
[356442384,1742460644446,-277.50457,0.000443,120]
[356442387,1742460644455,-150.0,0.000443,120]
[356442389,1742460644465,-159.56081385,0.000444,120]
[356442391,1742460644475,-699.06,0.000444,120]
[356442393,1742460644485,-660.54903987,0.000445,120]
[356442395,1742460644495,-500.0,0.00044576,120]
[356442397,1742460644504,-50504.7435138,0.0004462,2]
[356442399,1742460644514,-286.13573884,0.00044633,16]
[356442401,1742460644524,-217.38,0.00044748,2]
[356442403,1742460644534,-399.52511872,0.000448,120]
[356442405,1742460644544,-5150.0,0.0004488,34]
[356442407,1742460644554,-150.0,0.000449,120]
[356442409,1742460644566,-5000.0,0.000449,120]
[356442411,1742460644576,-576.60514116,0.000449,30]
[356442413,1742460644585,-222.45694641,0.000449,120]
[356442415,1742460644595,-3451.77465208,0.00044998,31]
[356442417,1742460644605,-20000.0,0.00045,7]
[356442419,1742460644614,-1191.76087398,0.00045,60]
[356442421,1742460644624,-901.65606225,0.00045,50]
[356442423,1742460644634,-1000.0,0.00045,30]
[356442425,1742460644643,-1200.0,0.00045,120]
[356442427,1742460644652,-171.1837373,0.00045,60]
[356442429,1742460644662,-10918.85288508,0.00045,120]
[356442430,1742460644671,-10341.0,0.00045,120]
[356442432,1742460644680,-151.0,0.00045,120]
[356442434,1742460644690,-168.81111111,0.00045,120]
[356442436,1742460644699,-200.15444643,0.00045,120]
[356442438,1742460644709,-257.47406566,0.00045,120]
[356442440,1742460644718,-368.10977291,0.00045,120]
[356442442,1742460644727,-1642.756248,0.00045,30]
[356442444,1742460644736,-900.0,0.00045,120]
[356442446,1742460644745,-48338.77881583,0.00045,120]
[356442448,1742460644755,-607.0,0.00045,120]
[356442450,1742460644764,-286.13573884,0.00045,18]
[356442452,1742460644774,-154.20110311,0.00045,7]
[356442454,1742460644784,-157.64144249,0.00045,7]
[356442456,1742460644794,-150.0,0.00045,7]
[356442458,1742460644803,-500.0,0.00045,7]
[356442460,1742460644812,-151.54545769,0.00045,7]
[356442462,1742460644821,-150.0,0.00045,7]
[356442463,1742460644831,-150.0,0.00045,7]
[356442466,1742460644840,-150.0,0.00045027,7]
[356442467,1742460644850,-646.0,0.00045027,7]
[356442469,1742460644859,-150.0,0.00045027,7]
[356442471,1742460644869,-207.73415936,0.00045055,7]
[356442473,1742460644879,-193.0,0.00045055,7]
[356442475,1742460644889,-500.0,0.00045124,120]
[356442477,1742460644899,-1000.0,0.000452,120]
[356442479,1742460644908,-181.34368467,0.0004521,120]
[356442481,1742460644917,-181.34368467,0.0004521,120]
[356442483,1742460644927,-181.34368467,0.0004521,120]
[356442485,1742460644936,-181.34,0.0004521,120]
[356442487,1742460644946,-153.86736881,0.0004521,120]
[356442489,1742460644954,-153.86736881,0.0004521,120]
[356442491,1742460644964,-153.86736881,0.0004521,120]
[356442492,1742460644973,-153.86736881,0.0004521,120]
[356442495,1742460644984,-153.86736881,0.0004521,120]
[356442496,1742460644994,-153.86736881,0.0004521,120]
[356442498,1742460645005,-153.86736881,0.0004521,120]
[356442500,1742460645015,-153.86736881,0.0004521,120]
[356442502,1742460645025,-153.86736881,0.0004521,120]
[356442504,1742460645035,-153.86736881,0.0004521,120]
[356442506,1742460645044,-153.86,0.0004521,120]
[356442508,1742460645054,-171.6172711,0.0004521,120]
[356442510,1742460645063,-171.6172711,0.0004521,120]
[356442512,1742460645073,-171.6172711,0.0004521,120]
[356442514,1742460645082,-171.6172711,0.0004521,120]
[356442516,1742460645092,-171.61,0.0004521,120]
[356442518,1742460645102,-154.01549971,0.0004521,120]
[356442520,1742460645112,-154.01549971,0.0004521,120]
[356442522,1742460645122,-154.01549971,0.0004521,120]
[356442524,1742460645131,-154.01549971,0.0004521,120]
[356442526,1742460645142,-154.01549971,0.0004521,120]
[356442528,1742460645156,-154.01549971,0.0004521,120]
[356442530,1742460645167,-154.01549971,0.0004521,120]
[356442532,1742460645176,-154.01549971,0.0004521,120]
[356442533,1742460645187,-154.01549971,0.0004521,120]
[356442535,1742460645197,-154.01549971,0.0004521,120]
[356442537,1742460645207,-154.01549971,0.0004521,120]
[356442539,1742460645218,-154.01549971,0.0004521,120]
[356442541,1742460645227,-154.01,0.0004521,120]
[356442543,1742460645239,-177.77285089,0.0004521,120]
[356442545,1742460645250,-177.77285089,0.0004521,120]
[356442547,1742460645260,-177.77,0.0004521,120]
[356442549,1742460645270,-155.55124453,0.0004521,120]
[356442551,1742460645280,-155.55124453,0.0004521,120]
[356442553,1742460645290,-155.55124453,0.0004521,120]
[356442555,1742460645302,-155.55124453,0.0004521,120]
[356442557,1742460645312,-155.55124453,0.0004521,120]
[356442559,1742460645322,-155.55124453,0.0004521,120]
[356442561,1742460645332,-155.55124453,0.0004521,120]
[356442563,1742460645341,-286.13573884,0.00045367,19]
[356442565,1742460645351,-150.0,0.0004548,120]
[356442567,1742460645361,-277.50457,0.000455,120]
[356442569,1742460645370,-150.0,0.000455,120]
[356442571,1742460645379,-754.10009258,0.000455,120]
[356442573,1742460645389,-5223.59949604,0.000456,120]
[356442575,1742460645399,-2597.19744697,0.000456,120]
[356442577,1742460645409,-1693.21336457,0.000456,120]
[356442579,1742460645419,-1828.77,0.00045643,120]
[356442581,1742460645429,-1828.77,0.00045643,120]
[356442583,1742460645440,-1828.77,0.00045643,120]
[356442585,1742460645451,-1828.77,0.00045643,120]
[356442587,1742460645462,-1828.77,0.00045643,120]
[356442589,1742460645471,-1828.77,0.00045643,120]
[356442591,1742460645482,-1828.77,0.00045643,120]
[356442592,1742460645491,-1828.77,0.00045643,120]
[356442594,1742460645501,-1828.77,0.00045643,120]
[356442596,1742460645510,-1828.77,0.00045643,120]
[356442598,1742460645519,-1828.77,0.00045643,120]
[356442600,1742460645529,-1828.77,0.00045643,120]
[356442602,1742460645539,-1828.77,0.00045643,120]
[356442604,1742460645548,-1828.77,0.00045643,120]
[356442606,1742460645559,-1828.77,0.00045643,120]
[356442608,1742460645570,-1828.77,0.00045643,120]
[356442610,1742460645579,-1828.77,0.00045643,120]
[356442612,1742460645589,-1828.77,0.00045643,120]
[356442614,1742460645599,-1828.77,0.00045643,120]
[356442616,1742460645608,-1828.77,0.00045643,120]
[356442618,1742460645617,-1828.77,0.00045643,120]
[356442620,1742460645627,-1828.77,0.00045643,120]
[356442622,1742460645637,-1828.77,0.00045643,120]
[356442624,1742460645646,-1828.8934762,0.00045643,120]
[356442626,1742460645656,-500.0,0.00045672,120]
[356442628,1742460645665,-209.82332891,0.00045683,30]
[356442630,1742460645675,-286.13573884,0.00045733,21]
[356442632,1742460645684,-150.0,0.00045754,120]
[356442633,1742460645693,-209.82332891,0.00045767,30]
[356442635,1742460645703,-1020.84172573,0.00045778,30]
[356442637,1742460645713,-1020.84172573,0.00045788,30]
[356442639,1742460645723,-1020.84172573,0.00045875,30]
[356442641,1742460645732,-212.16849363,0.000459,120]
[356442643,1742460645741,-150.92789597,0.000459,120]
[356442645,1742460645750,-209.82332891,0.00045917,30]
[356442647,1742460645760,-1020.84172573,0.00045978,30]
[356442649,1742460645770,-188.10391117,0.0004598,30]
[356442651,1742460645780,-2518.17204728,0.00045989,64]
[356442653,1742460645790,-209.82332891,0.00045991,30]
[356442655,1742460645799,-1188.14288716,0.00045998,120]
[356442657,1742460645809,-8982.51141558,0.00046,30]
[356442659,1742460645820,-1004.50443612,0.00046,120]
[356442661,1742460645830,-500.0,0.00046,120]
[356442663,1742460645840,-801.30293961,0.00046,120]
[356442665,1742460645849,-871.86626038,0.00046,30]
[356442667,1742460645859,-504.09620605,0.00046,30]
[356442670,1742460645869,-300.0,0.00046,120]
[356442672,1742460645878,-10077.15948767,0.00046,120]
[356442675,1742460645888,-12554.12929871,0.00046,120]
[356442677,1742460645897,-397.0,0.00046,120]
[356442680,1742460645906,-1001.0,0.00046,60]
[356442682,1742460645916,-198.0,0.00046,120]
[356442685,1742460645925,-1000.0,0.00046,10]
[356442688,1742460645935,-2112.62779716,0.00046,120]
[356442690,1742460645945,-1637.30098405,0.00046,120]
[356442693,1742460645955,-150.0,0.00046028,120]
[356442696,1742460645965,-155.55,0.00046087,120]
[356442698,1742460645975,-517.21411,0.00046088,2]
[356442701,1742460645985,-517.21411,0.00046088,2]
[356442704,1742460645994,-1185.4166763,0.00046088,2]
[356442706,1742460646003,-1185.4166763,0.00046088,2]
[356442709,1742460646012,-2871.5098017,0.00046088,2]
[356442712,1742460646022,-2871.5098017,0.00046088,2]
[356442713,1742460646032,-150.0,0.000461,120]
[356442715,1742460646041,-286.13573884,0.000461,22]
[356442717,1742460646050,-2546663.03473726,0.0004612,120]
[356442720,1742460646065,-465618.99526274,0.0004612,120]
[356442722,1742460646075,-110541.6,0.00046127,120]
[356442724,1742460646085,-517.21411,0.00046155,2]
[356442727,1742460646094,-517.21411,0.00046155,2]
[356442730,1742460646103,-517.21411,0.00046155,2]
[356442733,1742460646113,-1185.4166763,0.00046155,2]
[356442736,1742460646122,-1185.4166763,0.00046155,2]
[356442739,1742460646131,-1185.4166763,0.00046155,2]
[356442741,1742460646140,-2871.5098017,0.00046155,2]
[356442744,1742460646151,-2871.5098017,0.00046155,2]
[356442746,1742460646162,-2871.5098017,0.00046155,2]
[356442749,1742460646171,-1548.26196954,0.00046187,120]
[356442753,1742460646181,-156353.93107175,0.00046187,30]
[356442755,1742460646194,-731.49477395,0.00046187,30]
[356442759,1742460646204,-34705.92443747,0.00046187,120]
[356442767,1742460646261,-615.0,0.00044,7]
[356442770,1742460646277,-2200.21403465,0.00046187,120]
[356442773,1742460646294,-788.00097222,0.00046187,120]
[356442788,1742460646363,-292.69049316,0.00046187,120]
[356442792,1742460646374,-452.839995,0.00046187,120]
[356442794,1742460646387,-546.006,0.00046187,120]
[356442806,1742460646470,-601.6529264,0.00046187,120]
[356442808,1742460646481,-14686.88448621,0.00046187,120]
[356444579,1742461166892,-150.0,0.00025,5]
[356444580,1742461172782,-545.5,0.00029494,15]
[356444581,1742461172810,-293.45,0.0003,2]
[356444582,1742461183467,-1000.0,0.00036505,2]
[356444583,1742461183495,-160.0,0.0004,14]
[356444584,1742461189392,-260.61570144,0.00042386,60]
[356444585,1742461189420,-155.27,0.00043647,2]
[356444586,1742461189447,-5000.0,0.000439,120]
[356444587,1742461189476,-500.0,0.00043999,120]
[356444588,1742461189506,-499.497,0.00044054,120]
[356444589,1742461189534,-389.3437189,0.0004477,4]
[356444590,1742461189565,-205.27581378,0.000449,10]
[356444591,1742461189594,-12468.09839519,0.00044912,2]
[356444592,1742461191075,292.0077892,0.0004477,4]
[356444596,1742461234732,-1148.02,0.00045162,30]
[356444597,1742461234757,-814.14,0.00045187,120]
[356444598,1742461234782,-814.43,0.00045187,120]
[356444599,1742461234807,-815.44,0.00045187,120]
[356444600,1742461234832,-370.9298448,0.00045187,120]
[356444601,1742461234857,-1030.56816743,0.00045263,10]
[356444602,1742461234882,-1086.91715469,0.00045263,10]
[356444603,1742461234906,-1170.94403069,0.00045263,10]
[356444604,1742461234930,-1000.0,0.000458,120]
[356444605,1742461234954,-1180.544,0.000458,75]
[356444606,1742461234981,-818.85,0.00045887,29]
[356444607,1742461235005,-874.39360176,0.00045987,18]
[356444608,1742461235031,-160.67352954,0.00045999,120]
[356444609,1742461235056,-500.0,0.00045999,120]
[356444610,1742461235080,-212.00534413,0.00045999,120]
[356444611,1742461235106,-500.0,0.00045999,120]
[356444612,1742461235133,-500.0,0.00045999,120]
[356444613,1742461235159,-226.29293164,0.00045999,120]
[356444614,1742461235185,-500.0,0.00045999,120]
[356444615,1742461235209,-500.0,0.00045999,120]
[356444616,1742461235234,-500.0,0.00045999,120]
[356444617,1742461235258,-500.0,0.00045999,120]
[356444618,1742461235284,-500.0,0.00045999,120]
[356444619,1742461235308,-500.0,0.00045999,120]
[356444620,1742461235332,-584.32389442,0.00045999,120]
[356444621,1742461235357,-500.0,0.00045999,120]
[356444622,1742461235381,-500.0,0.00045999,120]
[356444623,1742461235405,-598.14250512,0.00046,60]
[356444624,1742461235429,-6593.38499578,0.00046,120]
[356444625,1742461236110,219.0058419,0.0004477,4]
[356444626,1742461249582,151.0,0.0003092,2]
[356444627,1742461253482,1183.0,0.00029355,2]
[356444628,1742461253609,1183.0,0.00029658,2]
[356444629,1742461253778,1183.0,0.0002996,2]
[356444630,1742461253903,1183.0,0.00030263,2]
[356444631,1742461254014,127.88573959,0.00030565,2]
[356444632,1742461254042,1055.11426041,0.00030565,2]
[356444633,1742461254174,1183.0,0.00030868,2]
[356444634,1742461254411,1183.0,0.00031171,2]
[356444635,1742461284116,422.09853833,0.00030263,2]
[356444667,1742461832524,-155.27,0.00043485,2]
[356444668,1742461832535,-164.2543814,0.0004477,4]
[356444669,1742461832544,-119.64590317,0.00045,120]
[356444670,1742461832576,-156.35409683,0.00045,120]
[356444671,1742461832586,-1000.0,0.00045626,2]
[356444672,1742461832596,-42062.64590317,0.000458,120]
[356444675,1742461840647,-7289.18085854,0.000458,120]
[356444676,1742461840660,-740.87293995,0.000458,120]
[356444955,1742461846441,-15836.02609404,0.000458,120]
[356444957,1742461846451,-2500.0,0.0004588,120]
[356444959,1742461846461,-2500.0,0.0004588,120]
[356444961,1742461846471,-584.9,0.00045887,29]
[356444963,1742461846481,-816.10069492,0.000459,18]
[356444965,1742461846490,-1163.478241,0.000459,5]
[356444967,1742461846500,-1836.31708998,0.000459,120]
[356444969,1742461846509,-205.27581378,0.000459,10]
[356444971,1742461846519,-1000.0,0.000459,2]
[356444973,1742461846528,-24331.82791325,0.00046,120]
[356444975,1742461846540,-2799.82303485,0.00046,120]
[356449675,1742461974912,150.0,0.0003,2]
[356449681,1742462026129,153.0,0.00033438,2]
[356449682,1742462072194,5148.02,0.00013699,2]
[356449683,1742462072662,5148.02,0.00013699,2]
[356449684,1742462073620,5148.02,0.00013699,2]